Cogmind - Beta 13 @@@ ROGUE MODE // 2024.04.11 @ 12:09:59 Player: TheedMan Result: Destroyed by D-53 Grenadier with Mini Grenade Launcher Performance ------------- Evolutions (1) 500 Regions Visited (4) 800 Robots Destroyed (35) 175 Value Destroyed (801) 801 Prototype IDs (5) 100 Alien Tech Used (0) 0 Bonus (22) 22 TOTAL SCORE: 2398 Bonus ------- High Alert Combat Kills 22 Cogmind --------- Core Integrity 0/400 Matter 467/500 Energy 63/280 System Corruption 0% Temperature Cool (0) Movement Core (350) Ox6 Location -9/Mines Parts ------- > --- POWER (1) -------- Heavy Ion Engine > --- PROPULSION (3) --- (None) > --- UTILITY (3) ------ Small Storage Unit High-capacity Matter Pod Signal Interpreter > --- WEAPON (2) ------- Small Laser Heavy Assault Rifle > --- INVENTORY (8) ---- Light Ion Engine Light Ion Engine Heat Sink Peak State ------------ > --- POWER ------------ Light Nuclear Core > --- PROPULSION ------- Aluminum Leg Aluminum Leg Aluminum Leg > --- UTILITY ---------- Small Storage Unit High-capacity Matter Pod Signal Interpreter > --- WEAPON ----------- Particle Gun Particle Gun > --- INVENTORY -------- Ion Engine Light Ion Engine Light Ion Engine Small Laser Light Assault Rifle [Rating: 13] Favorites ----------- Power Ion Engine Engine Ion Engine Power Core Light Nuclear Core Propulsion Aluminum Leg Leg Aluminum Leg Utility Small Storage Unit Device Seismic Detector Storage Small Storage Unit Processor Signal Interpreter Weapon Small Laser Energy Gun Small Laser Ballistic Gun Light Assault Rifle Ballistic Cannon Light Cannon Build | -11 -10 -10 -9 -9 ------- Run | Yrd Mat Min Mat Min Slots Evolved 2 | . . . 2 . Power . | . . . . . Propulsion 1 | . . . 1 . Utility 1 | . . . 1 . Weapon . | . . . . . Parts Attached 35 | 6 2 4 19 4 Power 6 | 1 . 1 3 1 Engine 5 | 1 . . 3 1 Core 1 | . . 1 . . Reactor . | . . . . . Propulsion 11 | 2 . 1 7 1 Treads . | . . . . . Leg 11 | 2 . 1 7 1 Wheel . | . . . . . Hover . | . . . . . Flight . | . . . . . Utility 5 | 1 2 . 2 . Device 1 | . 1 . . . Storage 2 | 1 . . 1 . Processor 2 | . 1 . 1 . Hackware . | . . . . . Protection . | . . . . . Artifact . | . . . . . Weapon 13 | 2 . 2 7 2 Energy Gun 5 | . . 2 2 1 Energy Cannon . | . . . . . Ballistic Gun 4 | 2 . . 1 1 Ballistic Cannon 4 | . . . 4 . Launcher . | . . . . . Special Weapon . | . . . . . Impact Weapon . | . . . . . Slashing Weapon . | . . . . . Piercing Weapon . | . . . . . Special Melee Weapon . | . . . . . Unidentified Prototypes 1 | . . . . 1 Parts Lost 13 | . . . 7 6 Power 3 | . . . 2 1 Propulsion 6 | . . . 3 3 Utility . | . . . . . Weapon 4 | . . . 2 2 Highest Loss Streak 6 | . . . 3 6 To Critical Strikes . | . . . . . Average Slot Usage (%) 90 | . 95 100 86 86 Engine 8 | . 14 9 7 11 Core 1 | . . 4 1 . Leg 25 | . 28 28 24 20 Storage 18 | . 14 14 21 22 Processor 11 | . 4 14 11 11 Energy Gun 9 | . . 9 12 . Ballistic Gun 8 | . 28 18 . . Ballistic Cannon 5 | . . . 6 20 Naked Turns . | . . . . . Heaviest Build 20 | 13 14 16 20 19 Greatest Support 30 | 20 20 20 30 20 Greatest Overweight (x) 3 | . . . 3 . Average Overweight (x) . | . . . . . Largest Inventory Capacity 8 | 8 8 8 8 8 Average Capacity 7 | 7 8 8 8 8 Most Carried 8 | 4 5 8 8 7 Average Carried 5 | 2 4 6 5 6 Final Capacity 8 | 8 8 8 8 8 Final Carried 7 | 4 5 7 7 3 Class Distribution -------------------- 54% | Scavenger-Mutant 45% | Mutant Dominant Class ---------------- Mutant | -10/Materials Mutant | -10/Mines Scavenger-Mutant | -9/Materials Scavenger-Mutant | -9/Mines Resources | -11 -10 -10 -9 -9 ----------- Run | Yrd Mat Min Mat Min Matter Collected 1050 | 169 33 204 571 73 Remotely . | . . . . . Salvage Created 984 | . 33 170 771 10 Parts 66 | . 6 8 51 1 Haulers Intercepted . | . . . . . Recyclers Shooed . | . . . . . Parts Field Recycled . | . . . . . Retrieved Matter . | . . . . . Parts Self-Destructed . | . . . . . Prevented . | . . . . . Kills | -11 -10 -10 -9 -9 ------- Run | Yrd Mat Min Mat Min Combat Hostiles Destroyed 30 | . . 5 23 2 Guns 21 | . . 5 16 . Cannons 9 | . . . 7 2 Classes Destroyed 9 | . 2 2 4 1 Worker 1 | . . . 1 . Recycler 1 | . . . 1 . Operator 1 | . 1 . . . Watcher 3 | . 1 . 2 . Swarmer 15 | . . 2 12 1 Grunt 8 | . . 3 5 . Duelist 1 | . . . 1 . Sentry 5 | . . . 5 . Assembled 1 | . . . . 1 Best Kill Streak 11 | . 2 2 11 1 Combat Bots Only 10 | . . 2 10 1 Max Kills in Single Turn 2 | . 1 1 2 1 Gunslinging . | . . . . . Exploded . | . . . . . Melee . | . . . . . Uniques/NPCs Destroyed . | . . . . . Combat | -11 -10 -10 -9 -9 -------- Run | Yrd Mat Min Mat Min Hostile Shots Fired 207 | . . 43 143 21 Missed 49 | . . 10 35 4 Damage Taken 2144 | . . 403 1273 468 Core 466 | . . 65 254 147 Absorbed by Shields . | . . . . . Core Remaining (%) 87 | 100 . 74 . . Volleys Fired 136 | . 5 28 95 8 Largest 2 | . 2 2 2 2 Hottest 130 | . 40 130 130 74 Shots Fired 224 | . 10 56 143 15 Gun 167 | . 10 56 99 2 Cannon 57 | . . . 44 13 Launcher . | . . . . . Special . | . . . . . Kinetic 140 | . 10 46 70 14 Thermal 84 | . . 10 73 1 Explosive . | . . . . . Electromagnetic . | . . . . . Robot Hit Streak 13 | . 3 7 13 2 Robot Miss Streak 5 | . 1 4 5 2 Penetration Max . | . . . . . Secondary Targets . | . . . . . Shots Hit Robots 125 | . 6 32 81 6 Core Hits 60 | . 4 12 41 3 Critical Kills . | . . . . . Critical Parts Destroyed 1 | . 1 . . . Critical Strikes 3 | . 1 . 2 . Destroy 1 | . 1 . . . Blast 2 | . . . 2 . Melee Attacks . | . . . . . Impact . | . . . . . Slashing . | . . . . . Piercing . | . . . . . Sneak Attacks . | . . . . . Combat Hostiles . | . . . . . Follow-up Attacks . | . . . . . Damage Inflicted 1711 | . 53 355 1164 139 Guns 1142 | . 53 355 720 14 Cannons 549 | . . . 424 125 Explosions . | . . . . . Melee . | . . . . . Ramming 20 | . . . 20 . Kinetic 1045 | . 53 309 544 139 Thermal 646 | . . 46 600 . Explosive . | . . . . . Electromagnetic . | . . . . . Impact . | . . . . . Slashing . | . . . . . Piercing . | . . . . . Highest Corruption . | . . . . . Average Corruption . | . . . . . Corruption Purged . | . . . . . Corruption Blocked . | . . . . . Overload Shots . | . . . . . Overflow Damage 3 | . . . . 3 Projectiles 3 | . . . . 3 Explosions . | . . . . . Melee . | . . . . . Knockbacks 7 | . . . 4 3 Impact . | . . . . . Kinetic 6 | . . . 3 3 Secondary 1 | . . . 1 . Self-Inflicted Damage . | . . . . . Shots . | . . . . . Rammed . | . . . . . Targets Rammed 4 | . . 1 3 . Kicked 4 | . . 1 3 . Crushed . | . . . . . Highest Temperature 378 | . . 368 378 12 Average Temperature 73 | . . 100 69 5 Received Heat Transfer 501 | . . 192 309 . Effects 9 | . . 5 4 . Shutdowns 1 | . . 1 . . Energy Bleed 2 | . . 1 1 . Interference 4 | . . 3 1 . Matter Decay 1 | . . . 1 . Short Circuit 1 | . . . 1 . Siege Activations . | . . . . . Robots Corrupted . | . . . . . Combat Hostiles . | . . . . . Parts Fried . | . . . . . Impact Corruptions . | . . . . . Robots Melted . | . . . . . Combat Hostiles . | . . . . . Parts Melted 2 | . . . 2 . Heat Transferred 1469 | . . 111 1358 . Parts Sabotaged . | . . . . . Parts Stolen . | . . . . . Parts Stripped . | . . . . . Power Chain Reactions . | . . . . . Alert | -11 -10 -10 -9 -9 ------- Run | Yrd Mat Min Mat Min Peak Influence 490 | . 32 217 490 226 Initial 190 | . . 12 84 190 Average 157 | . 11 96 217 203 Maximum Alert Level 2 | . . 1 2 1 Low Security (%) 66 | 100 100 86 54 33 Level 1 22 | . . 13 25 66 Level 2 10 | . . . 20 . Level 3 . | . . . . . Level 4 . | . . . . . Level 5 . | . . . . . High Security . | . . . . . Max Security . | . . . . . Squads Dispatched 3 | . . . 3 . Investigation 1 | . . . 1 . Extermination . | . . . . . Reinforcement 2 | . . . 2 . Assault . | . . . . . Garrison . | . . . . . Intercept . | . . . . . Searches Triggered . | . . . . . Construction Impeded . | . . . . . Haulers Reinforced . | . . . . . Active Scanning Responses . | . . . . . Cargo Convoy Interrupts . | . . . . . Stealth | -11 -10 -10 -9 -9 --------- Run | Yrd Mat Min Mat Min Distress Signals 3 | . . . 3 . Communications Jammed . | . . . . . Distress Signals . | . . . . . Times Spotted 61 | . 2 13 40 6 Peak Tracking Total 8 | . 1 4 8 3 Tactical Retreats 6 | . . 3 3 . Traps | -11 -10 -10 -9 -9 ------- Run | Yrd Mat Min Mat Min Traps Triggered 2 | . . . 2 . Indirectly . | . . . . . Trap Hack Attempts . | . . . . . Triggered . | . . . . . Disarmed . | . . . . . Reprogrammed . | . . . . . Reused . | . . . . . Traps Extracted . | . . . . . Installed . | . . . . . Triggered . | . . . . . Machines | -11 -10 -10 -9 -9 ---------- Run | Yrd Mat Min Mat Min Machines Disabled 1 | . . . 1 . Max in Single Turn 1 | . . . 1 . Machines Repaired . | . . . . . Machines Dismantled . | . . . . . Machines Sabotaged . | . . . . . Overloaded Fab Kills . | . . . . . Hacking | -11 -10 -10 -9 -9 --------- Run | Yrd Mat Min Mat Min Machines Accessed 5 | . 2 . 3 . Terminals 4 | . 1 . 3 . Fabricators . | . . . . . Repair Stations . | . . . . . Recycling Units 1 | . 1 . . . Scanalyzers . | . . . . . Garrison Access . | . . . . . Total Hacks 16 | . 8 . 8 . Successful 8 | . 4 . 4 . Failed 8 | . 4 . 4 . Catastrophic . | . . . . . Database Lockouts . | . . . . . Manual 2 | . . . 2 . Terminals 13 | . 5 . 8 . Fabricators . | . . . . . Repair Stations . | . . . . . Recycling Units 3 | . 3 . . . Scanalyzers . | . . . . . Garrison Access . | . . . . . Terminal Hacks 6 | . 2 . 4 . Record 1 | . . . 1 . Prototype ID Bank 2 | . 1 . 1 . Alert Level 1 | . . . 1 . Unreport Threat 1 | . . . 1 . Zone Layout 1 | . 1 . . . Fabricator Hacks . | . . . . . Repair Station Hacks . | . . . . . Recycling Unit Hacks 2 | . 2 . . . Report Inventory 1 | . 1 . . . Retrieve Matter 1 | . 1 . . . Scanalyzer . | . . . . . Garrison Access Hacks . | . . . . . Unauthorized Hacks . | . . . . . Terminals . | . . . . . Fabricators . | . . . . . Repair Stations . | . . . . . Recycling Units . | . . . . . Scanalyzers . | . . . . . Garrison Access . | . . . . . Data Cores Recovered 1 | . 1 . . . Used 1 | . 1 . . . Hacking Detections 5 | . 2 . 3 . Full Trace Events 1 | . . . 1 . Feedback Events . | . . . . . Feedback Blocked . | . . . . . Robot Schematics Acquired . | . . . . . Robots Built . | . . . . . Authchips . | . . . . . Time . | . . . . . Total Robot Build Rating . | . . . . . Part Schematics Acquired . | . . . . . Parts Built . | . . . . . Authchips . | . . . . . Time . | . . . . . Total Part Build Rating . | . . . . . Parts Repaired . | . . . . . Time . | . . . . . Parts Recycled . | . . . . . Recycled Matter . | . . . . . Retrieved Matter . | . . . . . Retrieved Components . | . . . . . Parts Scanalyzed . | . . . . . Part Schematics Acquired . | . . . . . Parts Damaged . | . . . . . Bothacking | -11 -10 -10 -9 -9 ------------ Run | Yrd Mat Min Mat Min Used RIF Installer . | . . . . . Robots Hacked . | . . . . . Non-combat . | . . . . . Combat . | . . . . . Robot Hacks Applied . | . . . . . Relay Couplers Released . | . . . . . Fabnet Peak Effective % . | . . . . . Robots Rewired . | . . . . . Allies Hacked . | . . . . . Hacks Repelled . | . . . . . Allies | -11 -10 -10 -9 -9 -------- Run | Yrd Mat Min Mat Min Total Allies . | . . . . . Largest Group . | . . . . . Highest-Rated Group . | . . . . . Highest-Rated Ally . | . . . . . Total Orders . | . . . . . Ally Attacks . | . . . . . Total Damage . | . . . . . Kills . | . . . . . Allies Corrupted . | . . . . . Allies Melted . | . . . . . Intel | -11 -10 -10 -9 -9 ------- Run | Yrd Mat Min Mat Min Robot Analysis Total . | . . . . . Derelict Logs Recovered 3 | . . 3 . . Drone Launches . | . . . . . Drone Recoveries . | . . . . . Exploration | -11 -10 -10 -9 -9 ------------- Run | Yrd Mat Min Mat Min Turns Passed 1491 | 69 134 373 791 124 Spaces Moved 850 | 50 97 235 386 82 Core 18 | 4 . . 14 . Treads . | . . . . . Legs 832 | 46 97 235 372 82 Wheels . | . . . . . Hover . | . . . . . Flight . | . . . . . Fastest Speed 50 | 50 120 120 120 120 Average Speed 124 | 114 120 120 130 120 Slowest Speed 200 | 120 120 120 200 120 Overloaded Moves . | . . . . . Propulsion Burnouts . | . . . . . Robots Hopped . | . . . . . Cave-ins Triggered . | . . . . . Exploration Rate (%) 31 | 3 20 63 42 28 Regions Visited 4 Branch Regions 2 Pre-discovered Areas 1 | . . 1 . . Known Exits Taken 3 | . 1 1 1 . Unknown Exits Taken 1 | 1 . . . . Scrap Searched 2 | . . 1 . 1 Spaces Dug . | . . . . . Terrain Destroyed 3 | . . . 2 1 Melee . | . . . . . Projectile 3 | . . . 2 1 AOE . | . . . . . Terrain Rammed . | . . . . . Walls Destroyed . | . . . . . Machines Disabled . | . . . . . Actions | -11 -10 -10 -9 -9 --------- Run | Yrd Mat Min Mat Min Total 1063 | 59 105 275 530 94 Wait 16 | . . . 16 . Move 846 | 49 96 234 385 82 Hop . | . . . . . Pick Up 16 | 4 1 3 8 . Fast Attach 18 | 6 2 2 8 . Attach 11 | . . 1 6 4 Detach 1 | . . 1 . . Swap 6 | . . 1 5 . Drop 9 | . 1 4 4 . Fire 136 | . 5 28 95 8 Melee . | . . . . . Ram . | . . . . . Kick 4 | . . 1 3 . Crush . | . . . . . Escape Stasis . | . . . . . Rewire . | . . . . . Trap . | . . . . . Miscellaneous . | . . . . . Route ------- -11/Scrapyard -10/Materials -10/Mines -9/Materials (discovered 3 exits: Mat / *Min x2) -9/Mines History --------- Turn | Location | Event 24 | -11/Scrapyard | Discovered new exit (range 14) 70 | -11/Scrapyard | Entered Materials 178 | -10/Materials | Discovered new exit (range 17) 203 | -10/Materials | Identified exit to Mines 204 | -10/Materials | Entered Mines 317 | -10/Mines | Build established: Mutant 318 | -10/Mines | Found a hidden stash of uninstalled traps 372 | -10/Mines | Learned location of 1 exit from Materials 466 | -10/Mines | Learned location of 1 exit from Materials 486 | -10/Mines | Learned location of Storage (-8) 567 | -10/Mines | Discovered new exit (range 9) 576 | -10/Mines | Identified exit to Materials 577 | -10/Mines | Entered Materials 577 | -9/Materials | Evolved 2 slots: Propulsion x1, Utility x1 578 | -9/Materials | Identified exit to Mines 578 | -9/Materials | Identified exit to Materials 727 | -9/Materials | Lost 3 parts (3n) 1154 | -9/Materials | Core integrity fell below 50% 1183 | -9/Materials | Build established: Scavenger-Mutant 1231 | -9/Materials | Destroyed 10 combat bots 1362 | -9/Materials | Discovered exit to Mines (range 5) 1368 | -9/Materials | Entered Mines 1399 | -9/Mines | Assembled infested the area 1404 | -9/Mines | Assisted by a Guerilla fighting off Assembled 1489 | -9/Mines | Core integrity fell below 20% 1492 | -9/Mines | Destroyed by D-53 Grenadier with Mini Grenade Launcher Last Messages --------------- Acquired 3 matter. Acquired 5 matter. Acquired 11 matter. Acquired 7 matter. Acquired 3 matter. Acquired 5 matter. as-84922 reactivates. Acquired 1 matter. as-84922 destroyed. Acquired 7 matter. Acquired 4 matter. Acquired 1 matter. D-53 Grenadier knocked back. Imp. Light Cannon destroyed. Aluminum Leg destroyed. Lgt. Cannon destroyed. Lgt. Ion Engine destroyed. Aluminum Leg destroyed. Identified Hvy. Ion Engine. Aluminum Leg destroyed. Map ----- +----------------------------------------------------+ | ???????????????????????????????????????????????? | | ???????????????????????????????????????????????? | | ???????????????????????????????????????#????#### | | ??????????????????????????????????????? ????? | | ??????????????????????????????????????# #??????? | | ??????????????????????????????????????# #??????? | | ??????????????????????????????????????# #??????? | | ??????????????????????????????????????# #??????? | | ??????????????????????????????????????#=#??????# | | ???????????????????????????######?????# #??????# | | ??????????????????????????## ##??###/######## | | ??????????????????????##### ##?# | | ???????????######?????# """ ### | | ???????????? ????# ## """ ## ######## | | ?????????????? ?### ## """ ## #??????## | | ???????????????# # ## ### #???????# | | ??????????????## # ### ### #?# #???????? | | ??????????????# ; "##?####?# #?# #???????? | | ??????????????# ## %##???????# ### ##??????? | | ??????????????## ## ###?## ### # ["######?? | | ???????????????# #% ### = ""## ##? | | ??????????????## ### * #? | | ???????????#### #### = #? | | ???????????# #?## ##? | | ??????????# #??#### #?? | | ??????????# @ #?????## #?? | | ??????????# #??????## ##?? | | ?????????# #??????## #??? | | ?????????# #???????## #??? | | ?????????## # #????????## ##??? | | ??????????## ###### #?????????#####???? | | ???????????## ;##??????### d#?????????????????? | | ???????????#; #???????????#d ?????????????????? | | ???????????## ????????????? ????????????????? | | ????????????# ??????????????? #???????????????? | | ????????????#???????????????? < ???????????????? | | ?????????????????????????????? ??????????????? | | ??????????????????????????????? ??????????????? | | ???????????????????????????????????????????????? | | ???????????????????????????????????????????????? | | ???????????????????????????????????????????????? | | ???????????????????????????????????????????????? | | ???????????????????????????????????????????????? | | ???????????????????????????????????????????????? | | ???????????????????????????????????????????????? | | ???????????????????????????????????????????????? | | ???????????????????????????????????????????????? | | ???????????????????????????????????????????????? | | ???????????????????????????????????????????????? | | ???????????????????????????????????????????????? | +----------------------------------------------------+ Best States ------------- Heat Dissipation 28 Energy Generation 14 Energy Capacity 280 Matter Stores 500 Matter Capacity 500 Sight Range 16 Terrain Scan Density 10 Evasion (%) 55 Item Schematics ----------------- None Robot Schematics ------------------ None Fabricated ------------ Nothing Alien Tech Used ----------------- None Achievements -------------- Dynamic Key Challenges ------------ None Game ------ Seed WaveMomentumDrive Manual? 0 Play Time 00:19:00 Cumulative 5.7 hours Start 2024.04.11 @ 11:52:43 End 2024.04.11 @ 12:09:59 Sessions 1 Manual Loads 0 Difficulty Rogue Special Mode None Game No. 12 Rogue 12 Adventurer 0 Explorer 0 Win Type - Total 0 Types 0/0/0/0/0/0/0/0/0 Lore% 8 Gallery% 8 Achievement% 10 Wizard Run 0 Options --------- Layout 1 ASCII 0 Keyboard 0 Movement Mouse Keybinds 0 Fullscreen 1 Font 24/Smallcaps Map View 50x35 Zoom Use 0% Tactical HUD 0 Map Filters NONE Filters NONE Steam 1 RUN: b0fbd52f-bec5-48f6-86c8-c504529c857e